bitfinex/quotes_SOLUSD_20250310
["timestamp","ask_amount","ask_price","bid_price","bid_amount"]
[1741588458311,0.03,127.45,127.44,284.7088428]
[1741588459825,0.03,127.45,127.44,235.52896856]
[1741588459995,0.03,127.45,127.44,278.6580428]
[1741588460208,0.03,127.47,127.44,162.8750428]
[1741588460511,0.03,127.47,127.46,10.78226856]
[1741588462633,0.03,127.47,127.46,18.62776856]
[1741588464112,0.03,127.47,127.46,118.77731742]
[1741588465339,0.03,127.47,127.46,125.69731742]
[1741588465540,0.03,127.47,127.46,107.04766856]
[1741588466222,0.03,127.47,127.46,125.69731742]
[1741588467919,0.0001,127.47,127.46,269.08731742]
[1741588470810,0.0001,127.47,127.46,242.44766856]
[1741588471522,0.0001,127.47,127.46,261.09731742]
[1741588472130,0.0001,127.47,127.46,125.69731742]
[1741588472537,0.0001,127.47,127.46,107.04766856]
[1741588474329,0.0001,127.47,127.46,125.69731742]
[1741588476261,0.0001,127.47,127.46,107.04766856]
[1741588476758,0.0001,127.47,127.46,100.12766856]
[1741588477454,0.0001,127.47,127.46,118.77731742]
[1741588479263,0.5,127.5,127.46,141.5675774]
[1741588479556,0.5,127.5,127.49,10.78226856]
[1741588479859,0.5,127.5,127.49,17.70226856]
[1741588480069,0.5,127.5,127.49,25.54596856]
[1741588480366,0.5,127.5,127.49,31.59819932]
[1741588485258,0.03,127.51,127.49,285.66570907]
[1741588485563,0.03,127.53,127.52,38.64964886]
[1741588485770,0.03,127.53,127.52,55.48414818]
[1741588486575,0.03,127.53,127.52,36.83449932]
[1741588486750,0.03,127.53,127.52,16.83449932]
[1741588487068,0.03,127.53,127.51,16.83449932]
[1741588487367,0.03,127.53,127.52,16.83449932]
[1741588488554,0.03,127.53,127.51,16.83449932]
[1741588490066,0.03,127.53,127.52,16.83449932]
[1741588491782,0.03,127.53,127.52,24.67639932]
[1741588491998,0.03,127.53,127.52,124.82594818]
[1741588494462,0.03,127.53,127.52,106.17629932]
[1741588495915,0.03,127.53,127.52,24.67639932]
[1741588497996,0.03,127.53,127.52,16.83449932]
[1741588498165,0.03,127.53,127.51,7.8422]
[1741588498505,0.03,127.53,127.52,16.83449932]
[1741588499176,0.03,127.53,127.51,16.83449932]
[1741588499501,0.03,127.53,127.5,16.83449932]
[1741588500306,0.03,127.53,127.5,10.77740857]
[1741588500493,0.03,127.53,127.51,10.77740857]
[1741588503293,0.03,127.53,127.51,18.61980857]
[1741588503879,0.03,127.53,127.52,10.77740857]
[1741588504678,0.03,127.53,127.52,18.61930857]
[1741588508200,0.03,127.53,127.52,44.18895743]
[1741588508381,0.0001,127.53,127.52,125.68885743]
[1741588508576,0.0001,127.53,127.52,126.86456299]
[1741588508878,0.0001,127.53,127.52,125.68885743]
[1741588509293,0.0001,127.53,127.52,107.03920857]
[1741588511382,0.0001,127.53,127.52,125.68885743]
[1741588511704,0.0001,127.53,127.52,131.99255743]
[1741588511919,0.03,127.56,127.55,10.77740857]
[1741588512309,0.03,127.56,127.55,16.8206721]
[1741588512607,0.03,127.56,127.55,24.6606721]
[1741588513501,0.03,127.56,127.54,7.8404]
[1741588513882,0.03,127.56,127.54,16.8206721]
[1741588514985,0.03,127.56,127.53,16.8206721]
[1741588515189,0.17216157,127.56,127.52,16.8206721]
[1741588515899,0.14216157,127.54,127.51,16.8206721]
[1741588516092,0.14216157,127.54,127.51,0.063]
[1741588516288,0.14216157,127.54,127.51,16.8836721]
[1741588516490,0.03,127.53,127.51,16.8836721]
[1741588516798,0.03,127.53,127.52,16.8206721]
[1741588517104,0.03,127.53,127.51,16.8836721]
[1741588517492,0.03,127.53,127.51,0.063]
[1741588519010,0.03,127.53,127.51,24.7260721]
[1741588519213,0.03,127.53,127.52,16.8206721]
[1741588521509,0.03,127.53,127.51,24.7258721]
[1741588521710,0.03,127.53,127.51,16.8836721]
[1741588521891,0.03,127.53,127.51,0.063]
[1741588522090,0.03,127.53,127.51,16.8836721]
[1741588522409,0.03,127.53,127.52,16.8206721]
[1741588522610,0.03,127.53,127.51,24.7259721]
[1741588522914,0.03,127.53,127.51,0.063]
[1741588524009,0.17216157,127.53,127.51,0.063]
[1741588524513,0.14216157,127.52,127.51,0.063]
[1741588525008,0.31432314,127.53,127.51,0.063]
[1741588525212,24.97669524,127.53,127.51,0.063]
[1741588525417,20.31432314,127.53,127.51,0.063]
[1741588525594,0.14216157,127.52,127.51,16.8836721]
[1741588526797,0.03,127.53,127.51,16.8836721]
[1741588526996,0.03,127.53,127.52,16.8206721]
[1741588527206,0.03,127.53,127.52,24.6625721]
[1741588527699,0.03,127.53,127.52,16.8206721]
[1741588527895,0.17216157,127.53,127.51,81.5629]
[1741588528693,0.03,127.53,127.52,16.8206721]
[1741588528891,0.03,127.53,127.51,106.2259721]
[1741588529604,0.03,127.53,127.51,98.3835721]
[1741588530114,0.17216157,127.53,127.51,106.2258721]
[1741588530304,0.17216157,127.53,127.52,16.8206721]
[1741588531418,0.03,127.53,127.52,16.8206721]
[1741588531596,0.03,127.53,127.52,24.6625721]
[1741588532915,0.03,127.53,127.51,24.7259721]
[1741588535419,0.03,127.53,127.51,16.8836721]
[1741588535601,0.14216157,127.52,127.51,0.063]
[1741588535807,17.10499524,127.52,127.51,0.063]
[1741588536116,107.43889524,127.52,127.51,0.063]
[1741588536314,20.14216157,127.47,127.46,0.063]
[1741588536513,0.28432314,127.47,127.46,0.063]
[1741588536815,20.28432314,127.44,127.43,0.063]
[1741588537021,31.06691965,127.44,127.43,0.063]
[1741588537318,56.65656851,127.44,127.43,0.063]
[1741588537520,38.00691965,127.44,127.43,0.063]
[1741588538099,20.14216157,127.44,127.43,0.063]
[1741588540617,20.28432314,127.44,127.43,0.063]
[1741588543932,20.14216157,127.44,127.43,0.063]
[1741588547207,20.28432314,127.44,127.43,0.063]
[1741588547542,37.14649924,127.44,127.43,0.063]
[1741588548647,0.28432314,127.44,127.43,0.063]
[1741588552538,114.25029924,127.44,127.43,0.063]
[1741588553430,106.40349924,127.44,127.43,0.063]
[1741588553610,89.54132314,127.44,127.43,0.063]
[1741588557145,106.40349924,127.44,127.43,0.063]
[1741588558447,89.54132314,127.44,127.43,0.063]
[1741588563557,89.39916157,127.44,127.43,0.063]
[1741588563725,89.54132314,127.44,127.43,0.063]
[1741588564248,7.20432314,127.44,127.43,0.063]
[1741588564451,17.99787903,127.44,127.43,0.063]
[1741588564858,7.20432314,127.44,127.43,0.063]
[1741588565058,0.28432314,127.44,127.43,0.063]
[1741588565858,38.92467903,127.44,127.43,0.063]
[1741588566973,31.07787903,127.44,127.43,0.063]
[1741588567167,20.28432314,127.44,127.43,0.063]
[1741588567746,0.14216157,127.44,127.43,10.85655589]
[1741588568137,0.14216157,127.44,127.43,0.063]
[1741588568949,0.14216157,127.44,127.43,10.85655589]
[1741588569139,0.14216157,127.44,127.43,18.70395589]
[1741588573258,0.03,127.46,127.43,18.70395589]
[1741588574258,0.03,127.46,127.44,10.79355589]
[1741588575438,0.03,127.46,127.43,10.85655589]
[1741588576345,0.03,127.46,127.43,18.70345589]
[1741588576956,0.03,127.46,127.44,10.79355589]
[1741588577260,0.03,127.46,127.43,18.70345589]
[1741588580477,0.03,127.46,127.44,10.79355589]
[1741588580846,0.03,127.46,127.45,10.79355589]
[1741588583453,0.03,127.46,127.44,18.63995589]
[1741588585478,0.03,127.46,127.43,7.9104]
[1741588585768,0.17216157,127.46,127.43,0.063]
[1741588585975,0.14216157,127.44,127.43,0.063]
[1741588586150,11.07787903,127.44,127.43,0.063]
[1741588587255,0.28432314,127.4,127.38,0.568]
[1741588587451,20.28432314,127.4,127.38,0.568]
[1741588589771,0.14216157,127.4,127.39,10.79355589]
[1741588589982,0.28432314,127.43,127.39,10.79355589]
[1741588590275,0.28432314,127.43,127.4,10.79355589]
[1741588592661,0.28432314,127.43,127.4,18.64275589]
[1741588593182,0.14216157,127.4,127.39,10.79355589]
[1741588593403,0.14216157,127.4,127.38,11.36155589]
[1741588594584,0.14216157,127.4,127.38,19.21195589]
[1741588594760,0.14216157,127.4,127.39,10.79355589]
[1741588595586,0.14216157,127.41,127.39,18.64345589]
[1741588595757,0.14216157,127.41,127.38,11.36155589]
[1741588595965,0.14216157,127.41,127.38,8.4183]
[1741588596270,0.14216157,127.4,127.38,0.568]
[1741588600491,0.14216157,127.4,127.37,9.72e-05]
[1741588600492,0.14216157,127.35,127.3,0.063]
[1741588600701,0.28432314,127.35,127.3,7.9182]
[1741588600880,11.07787903,127.35,127.3,10.85655589]
[1741588602094,0.28432314,127.33,127.3,0.063]
[1741588602903,90.53792314,127.33,127.3,0.063]
[1741588603468,82.68432314,127.33,127.3,0.063]
[1741588605181,82.68432314,127.33,127.3,16.95786593]
[1741588606774,82.68432314,127.33,127.3,0.063]
[1741588606976,107.43278907,127.33,127.3,0.063]
[1741588607183,82.68432314,127.33,127.3,0.063]
[1741588607982,82.68432314,127.33,127.3,24.81316593]
[1741588608183,82.68432314,127.33,127.31,16.89486593]
[1741588608698,0.28432314,127.33,127.31,16.89486593]
[1741588608906,0.28432314,127.33,127.31,24.74946593]
[1741588609495,0.14216157,127.33,127.31,24.74946593]
[1741588609681,0.14216157,127.33,127.32,16.89486593]
[1741588610279,0.14216157,127.33,127.31,24.74946593]
[1741588611584,0.14216157,127.33,127.31,7.8546]
[1741588611993,0.14216157,127.33,127.31,24.74946593]
[1741588612384,0.14216157,127.33,127.31,24.81246593]
[1741588613078,82.4,127.37,127.32,16.89486593]
[1741588613278,0.28432314,127.36,127.33,16.89486593]
[1741588615394,0.28432314,127.33,127.31,0.063]
[1741588615774,0.14216157,127.33,127.31,0.063]
[1741588617994,20.28432314,127.32,127.31,0.063]
[1741588619514,28.13852314,127.32,127.31,0.063]
[1741588619886,45.03338907,127.32,127.31,0.063]
[1741588620205,146.08303793,127.32,127.31,0.063]
[1741588620511,102.68432314,127.32,127.31,0.063]
[1741588622216,20.28432314,127.32,127.31,0.063]
[1741588629925,0.28432314,127.32,127.31,0.063]
[1741588630312,0.14216157,127.32,127.31,0.063]
[1741588630854,0.14216157,127.32,127.31,7.9178]
[1741588631199,0.14216157,127.32,127.31,0.063]
[1741588635746,20.14216157,127.32,127.31,0.063]
[1741588639858,0.14216157,127.32,127.31,10.87722225]
[1741588640166,0.03,127.37,127.32,6.1803]
[1741588640451,0.14216157,127.36,127.32,6.1803]
[1741588641459,0.14216157,127.36,127.35,10.81422225]
[1741588641817,0.28432314,127.36,127.33,10.81422225]
[1741588642086,0.14216157,127.36,127.33,10.81422225]
[1741588643325,0.14216157,127.35,127.34,10.81422225]
[1741588647168,0.14216157,127.35,127.32,10.81422225]
[1741588647345,0.14216157,127.35,127.34,10.81422225]
[1741588648043,0.03,127.37,127.34,10.81422225]
[1741588648245,0.17216157,127.37,127.36,10.81422225]
[1741588648454,0.03,127.37,127.36,10.81422225]
[1741588650771,0.03,127.37,127.36,18.66592225]
[1741588652962,0.03,127.37,127.36,10.81422225]
[1741588657350,0.03,127.37,127.36,37.31557111]
[1741588657558,0.03,127.37,127.36,80.57246011]
[1741588658356,0.03,127.37,127.36,37.31557111]
[1741588660270,0.03,127.43,127.37,18.64964886]
[1741588660567,0.03,127.43,127.42,10.81422225]
[1741588660975,0.03,127.43,127.41,10.81422225]
[1741588664383,0.31432314,127.43,127.39,10.81422225]
[1741588665376,0.03,127.43,127.39,10.81422225]
[1741588665678,0.03,127.43,127.4,10.81422225]
[1741588666064,0.03,127.43,127.41,10.81422225]
[1741588666581,0.03,127.43,127.42,10.81422225]
[1741588668983,20.17216157,127.43,127.42,10.81422225]
[1741588669479,20.17216157,127.43,127.41,10.81422225]
[1741588669963,0.17216157,127.43,127.41,10.81422225]
[1741588671160,0.14216157,127.42,127.4,10.81422225]
[1741588671364,0.28432314,127.42,127.38,10.81422225]
[1741588671656,26.781972,127.42,127.38,10.81422225]
[1741588671867,37.59619425,127.42,127.37,10.87722225]
[1741588672178,26.781972,127.42,127.37,10.87722225]
[1741588673463,18.933972,127.42,127.38,10.81422225]
[1741588674303,90.1362,127.43,127.37,7.9141]
[1741588674304,20.0,127.4,127.37,7.9141]
[1741588674461,0.14216157,127.39,127.37,7.9141]
[1741588674653,0.14216157,127.39,127.37,0.063]
[1741588675384,0.14216157,127.39,127.38,10.81422225]
[1741588680491,0.14216157,127.4,127.38,61.92151125]
[1741588680685,0.14216157,127.4,127.39,10.81422225]
[1741588681195,0.14216157,127.41,127.39,10.81422225]
[1741588681366,0.14216157,127.41,127.4,17.73422225]
[1741588685094,0.17216157,127.43,127.4,6.92]
[1741588685992,0.03,127.43,127.4,17.73422225]
[1741588686794,0.03,127.43,127.4,6.92]
[1741588687593,0.03,127.43,127.4,17.73422225]
[1741588689473,18.67964886,127.43,127.4,6.92]
[1741588689678,0.28432314,127.42,127.38,10.81422225]
[1741588689878,0.28432314,127.42,127.39,10.81422225]
[1741588691570,0.28432314,127.42,127.38,10.81422225]
[1741588692881,0.28432314,127.42,127.38,17.73422225]
[1741588697774,0.28432314,127.42,127.39,10.81422225]
[1741588700695,20.0,127.4,127.38,17.73422225]
[1741588700994,0.28432314,127.39,127.37,0.063]
[1741588701197,18.933972,127.39,127.37,0.063]
[1741588701585,29.74819425,127.39,127.37,0.063]
[1741588701898,10.95638382,127.38,127.37,0.063]
[1741588702119,112.14819425,127.38,127.37,0.063]
[1741588702279,120.28389425,127.38,127.37,0.063]
[1741588703278,37.88389425,127.38,127.37,0.063]
[1741588703674,45.73439425,127.38,127.37,0.063]
[1741588705171,88.99128325,127.38,127.37,0.063]
[1741588705374,88.99128325,127.38,127.36,0.063]
[1741588705375,18.933972,127.37,127.36,0.063]
[1741588705600,29.74819425,127.37,127.36,0.063]
[1741588706519,29.74819425,127.37,127.36,0.0001]
[1741588707112,37.59929425,127.37,127.36,0.0001]
[1741588708592,18.933972,127.33,127.31,0.063]
[1741588708792,29.74819425,127.32,127.31,0.063]
[1741588711194,18.933972,127.32,127.31,0.063]
[1741588713024,29.74819425,127.32,127.31,0.063]
[1741588713401,0.14216157,127.32,127.31,0.063]
[1741588713706,0.14216157,127.37,127.31,18.61412225]
[1741588713895,0.28432314,127.34,127.31,1.694]
[1741588714097,0.14216157,127.32,127.31,0.063]
[1741588717430,0.28432314,127.33,127.31,0.063]
[1741588718305,29.74819425,127.33,127.31,0.063]
[1741588719716,37.60179425,127.33,127.31,0.063]
[1741588720104,11.09854539,127.32,127.31,0.063]
[1741588720930,0.28432314,127.32,127.31,0.063]
[1741588722813,18.933972,127.32,127.31,0.063]
[1741588723015,18.933972,127.32,127.3,0.063]
[1741588723016,18.933972,127.31,127.3,0.063]
[1741588723324,18.933972,127.31,127.23,6.5332]
[1741588723325,20.28432314,127.24,127.23,0.063]
[1741588723637,49.74819425,127.24,127.23,0.063]
[1741588724310,56.01639425,127.24,127.23,0.063]
[1741588727945,138.41639425,127.24,127.23,0.063]
[1741588728640,132.14819425,127.24,127.23,0.063]
[1741588730366,121.333972,127.24,127.23,0.063]
[1741588730648,49.74819425,127.24,127.23,0.063]
[1741588733966,0.28432314,127.19,127.18,2.7490012]
[1741588734330,18.933972,127.19,127.18,2.7490012]
[1741588735129,35.86209851,127.19,127.18,2.7490012]
[1741588735328,35.86209851,127.19,127.18,1.7490012]
[1741588736152,18.933972,127.19,127.18,1.7490012]
[1741588736927,0.28432314,127.19,127.18,1.7490012]
[1741588737348,18.933972,127.19,127.18,1.7490012]
[1741588738353,35.86209851,127.19,127.18,1.7490012]
[1741588738853,18.933972,127.19,127.18,1.7490012]
[1741588740931,35.86209851,127.19,127.18,1.7490012]
[1741588741542,18.933972,127.19,127.18,1.7490012]
[1741588742457,35.86209851,127.19,127.18,1.7490012]
[1741588742650,18.933972,127.19,127.18,1.7490012]
[1741588744542,18.963972,127.19,127.18,1.7490012]
[1741588746339,126.15429851,127.19,127.18,1.7490012]
[1741588749072,43.75429851,127.19,127.18,1.7490012]
[1741588749357,43.75429851,127.19,127.18,1.2e-06]
[1741588749767,50.71429851,127.19,127.18,1.2e-06]
[1741588750142,20.0,127.15,127.1,1.6915]
[1741588750338,0.14216157,127.13,127.11,16.92812651]
[1741588750552,0.14216157,127.14,127.1,1.6915]
[1741588751057,0.28432314,127.16,127.11,16.92812651]
[1741588751684,0.28432314,127.16,127.12,16.92812651]
[1741588752275,0.28432314,127.14,127.1,2.24398424]
[1741588752443,0.28432314,127.14,127.11,16.92812651]
[1741588753166,0.28432314,127.16,127.12,16.92812651]
[1741588753352,0.28432314,127.16,127.13,16.92812651]
[1741588754052,0.28432314,127.16,127.13,24.79402651]
[1741588754368,0.14216157,127.17,127.13,24.79402651]
[1741588754542,0.28432314,127.17,127.13,31.81402651]
[1741588754868,0.28432314,127.17,127.13,23.94812651]
[1741588755467,0.28432314,127.17,127.13,31.81392651]
[1741588756278,0.28432314,127.17,127.13,25.72304919]
[1741588756664,0.28432314,127.17,127.14,0.063]
[1741588756841,0.14216157,127.17,127.14,0.063]
[1741588757047,0.28432314,127.18,127.14,10.90024919]
[1741588758046,0.03,127.19,127.15,9.4342]
[1741588758367,0.03,127.19,127.16,10.83724919]
[1741588758667,0.03,127.19,127.15,20.27144919]
[1741588759242,0.03,127.19,127.15,12.40674919]
[1741588760147,0.17216157,127.19,127.15,12.40674919]
[1741588760363,0.17216157,127.19,127.15,20.27124919]
[1741588760664,0.17216157,127.19,127.14,216.963]
[1741588760665,20.28432314,127.16,127.14,0.063]
[1741588760863,132.17122119,127.15,127.14,0.063]
[1741588761243,121.333972,127.15,127.14,0.063]
[1741588761945,132.17122119,127.15,127.14,0.063]
[1741588762247,140.03592119,127.15,127.14,0.063]
[1741588762960,132.17122119,127.15,127.14,0.063]
[1741588763264,20.28432314,127.15,127.14,0.063]
[1741588764154,46.798672,127.15,127.14,0.063]
[1741588764897,38.933972,127.15,127.14,0.063]
[1741588765053,57.63592119,127.15,127.14,0.063]
[1741588766261,57.63592119,127.15,127.14,0.61548424]
[1741588766262,63.74405469,127.15,127.14,0.61548424]
[1741588771558,46.798672,127.15,127.14,0.61548424]
[1741588772278,63.74405469,127.15,127.14,0.61548424]
[1741588775157,46.798672,127.15,127.14,0.61548424]
[1741588775559,63.74405469,127.15,127.14,0.61548424]
[1741588779683,45.09440583,127.15,127.14,0.61548424]
[1741588781478,8.14902314,127.15,127.14,0.61548424]
[1741588782570,25.09440583,127.15,127.14,0.61548424]
[1741588783467,24.95224426,127.15,127.14,0.61548424]
[1741588783974,25.09440583,127.15,127.14,0.61548424]
[1741588786297,8.14902314,127.15,127.14,0.61548424]
[1741588786589,18.99119392,127.15,127.14,0.61548424]
[1741588790268,18.99119392,127.15,127.14,8.424e-05]
[1741588791405,0.14216157,127.14,127.13,4.24e-05]
[1741588791605,10.98433235,127.14,127.13,4.24e-05]
[1741588793402,10.98433235,127.14,127.13,0.0630424]
[1741588793606,18.84963235,127.14,127.13,0.0630424]
[1741588794571,8.00746157,127.14,127.13,0.0630424]
[1741588797695,18.84963235,127.14,127.13,0.0630424]
[1741588797995,18.99179392,127.14,127.13,0.0630424]
[1741588799100,101.39179392,127.14,127.13,0.0630424]
[1741588801398,120.04144278,127.14,127.13,0.0630424]
[1741588802208,101.39179392,127.14,127.13,0.0630424]
[1741588802431,37.64144278,127.14,127.13,0.0630424]
[1741588803586,8.00746157,127.14,127.13,0.0630424]
[1741588805808,18.99179392,127.14,127.13,0.0630424]
[1741588807412,37.64144278,127.14,127.13,0.0630424]
[1741588809006,81.0101259,127.14,127.13,4.24e-05]
[1741588809400,87.42068073,127.14,127.13,4.24e-05]
[1741588809786,37.64144278,127.14,127.13,4.24e-05]
[1741588810392,81.0101259,127.14,127.13,4.24e-05]
[1741588814302,37.64144278,127.14,127.13,4.24e-05]
[1741588815417,81.0101259,127.14,127.13,4.24e-05]
[1741588817186,37.64144278,127.14,127.13,4.24e-05]
[1741588817811,37.67144278,127.14,127.13,4.24e-05]
[1741588819114,81.0401259,127.14,127.13,4.24e-05]
[1741588820908,37.67144278,127.14,127.13,4.24e-05]
[1741588821897,81.0401259,127.14,127.13,4.24e-05]
[1741588823521,0.14216157,127.13,127.08,1.5675]
[1741588823822,0.14216157,127.1,127.08,1.5675]
[1741588824118,8.01016157,127.1,127.08,1.5675]
[1741588826130,18.85233235,127.1,127.06,6.2321]
[1741588826308,18.85233235,127.1,127.06,13.1721]
[1741588826900,8.01016157,127.1,127.06,24.01427078]
[1741588827547,0.14216157,127.1,127.06,24.01427078]
[1741588827700,0.14216157,127.1,127.06,31.88447078]
[1741588827901,0.14216157,127.1,127.07,10.84217078]
[1741588828343,8.01006157,127.1,127.06,24.01427078]
[1741588830431,8.01006157,127.1,127.08,0.063]
[1741588830636,0.14216157,127.1,127.08,0.063]
[1741588831130,8.00996157,127.1,127.08,0.063]
[1741588831514,0.14216157,127.1,127.08,10.90517078]
[1741588832130,0.14216157,127.11,127.08,0.063]
[1741588832329,8.00936157,127.11,127.08,0.063]
[1741588833837,18.85153235,127.11,127.08,0.063]
[1741588836226,8.00936157,127.11,127.08,0.063]
[1741588836827,0.14216157,127.11,127.08,0.063]
[1741588837627,8.00946157,127.11,127.08,0.063]
[1741588839211,0.28432314,127.09,127.08,0.063]
[1741588839406,0.14216157,127.09,127.08,10.90517078]
[1741588839601,0.17216157,127.14,127.08,10.90517078]
[1741588839919,0.14216157,127.13,127.09,19.50537078]
[1741588840233,0.14216157,127.13,127.09,8.6632]
[1741588840619,0.14216157,127.12,127.09,8.6632]
[1741588840837,10.98433235,127.12,127.09,8.6632]
[1741588841632,18.85103235,127.12,127.09,8.6632]
[1741588842129,8.00886157,127.12,127.09,8.6632]
[1741588842928,18.85103235,127.12,127.09,8.6632]
[1741588843634,0.14216157,127.11,127.08,0.063]
[1741588843934,0.14216157,127.1,127.08,0.063]
[1741588845039,8.01046157,127.1,127.08,0.063]
[1741588847135,8.15172314,127.11,127.08,0.063]
[1741588847342,0.14216157,127.11,127.08,10.90517078]
[1741588847647,0.14216157,127.12,127.08,10.90517078]
[1741588848446,0.14216157,127.12,127.08,18.77407078]
[1741588848612,0.31432314,127.13,127.09,10.84217078]
[1741588848936,8.18032314,127.13,127.08,10.90517078]
[1741588849138,19.02249392,127.13,127.08,10.90517078]
[1741588849343,0.14216157,127.11,127.08,0.063]
[1741588851235,0.14216157,127.1,127.08,0.063]
[1741588854038,0.14216157,127.09,127.08,0.063]
[1741588856051,0.28432314,127.1,127.08,0.063]
[1741588858543,0.14216157,127.11,127.08,0.063]
[1741588860531,0.14216157,127.12,127.08,10.90517078]
[1741588860926,10.98433235,127.12,127.08,0.063]
[1741588861642,10.84217078,127.11,127.08,0.063]
[1741588861839,18.85123235,127.12,127.08,0.063]
[1741588862844,10.98433235,127.12,127.08,0.063]
[1741588863720,18.85103235,127.12,127.08,0.063]
[1741588864134,10.98433235,127.12,127.08,0.063]
[1741588866054,10.98433235,127.12,127.08,7.932]
[1741588867449,0.17216157,127.13,127.08,18.77417078]
[1741588867655,0.14216157,127.12,127.08,7.932]
[1741588868147,0.14216157,127.12,127.08,18.77417078]
[1741588869048,10.98433235,127.12,127.08,7.932]
[1741588869552,11.15649392,127.13,127.08,18.77417078]
[1741588870367,0.14216157,127.1,127.08,0.063]
[1741588871163,11.12649392,127.12,127.08,0.063]
[1741588871761,0.14216157,127.1,127.08,0.063]
[1741588871940,11.12649392,127.1,127.08,0.063]
[1741588872341,0.14216157,127.09,127.08,0.063]
[1741588872655,0.14216157,127.12,127.08,12.47717078]
[1741588872857,0.14216157,127.12,127.09,10.84217078]
[1741588873249,0.31432314,127.13,127.09,10.84217078]
[1741588873451,0.31432314,127.13,127.08,12.47717078]
[1741588875056,0.31432314,127.13,127.09,7.8684]
[1741588875670,0.03,127.13,127.09,18.71057078]
[1741588875846,0.03,127.13,127.1,10.84217078]
[1741588876049,0.03,127.13,127.11,10.84217078]
[1741588877168,0.03,127.13,127.12,7.8665]
[1741588877367,0.03,127.13,127.12,20.28937078]
[1741588882292,0.03,127.13,127.12,237.18937078]
[1741588883679,0.03,127.13,127.12,218.4807]
[1741588883968,0.17216157,127.13,127.09,18.71037078]
[1741588884138,0.17216157,127.13,127.09,25.75037078]
[1741588884341,0.03,127.13,127.1,10.84217078]
[1741588884953,0.03,127.13,127.11,10.84217078]
[1741588885867,0.03,127.13,127.12,7.8665]
[1741588886356,0.03,127.13,127.12,18.70867078]
[1741588891175,0.03,127.13,127.12,237.13307078]
[1741588893597,0.03,127.13,127.12,226.2909]
[1741588893764,0.03,127.13,127.12,237.13307078]
[1741588897400,0.03,127.14,127.12,239.13307078]
[1741588897557,0.03,127.14,127.13,10.84217078]
[1741588897758,0.03,127.14,127.13,17.84217078]
[1741588898891,0.03,127.14,127.13,25.70807078]
[1741588903097,0.03,127.14,127.13,242.60807078]
[1741588904898,0.03,127.14,127.13,231.7659]
[1741588905288,0.03,127.14,127.13,242.60807078]
[1741588906388,0.03,127.14,127.13,231.7659]
[1741588906899,0.03,127.14,127.13,242.60807078]
[1741588908682,0.03,127.14,127.13,231.7659]
[1741588909406,0.03,127.14,127.13,242.60807078]
[1741588911882,0.03,127.14,127.13,231.7659]
[1741588914885,0.03,127.14,127.13,96.3659]
[1741588915189,0.03,127.14,127.13,96.3059]
[1741588915408,0.03,127.14,127.12,0.063]
[1741588915578,6.295,127.11,127.08,0.063]
[1741588915781,0.14216157,127.09,127.08,0.063]
[1741588915976,10.98433235,127.09,127.08,0.063]
[1741588916282,0.28432314,127.09,127.08,0.063]
[1741588916572,10.98433235,127.09,127.08,0.063]
[1741588917007,0.14216157,127.09,127.08,0.063]
[1741588917378,10.98433235,127.09,127.08,0.063]
[1741588920606,18.85273235,127.09,127.08,0.063]
[1741588921998,10.98433235,127.09,127.08,0.063]
[1741588922326,18.85273235,127.09,127.08,0.063]
[1741588922612,8.01056157,127.09,127.08,0.063]
[1741588922782,18.85273235,127.09,127.08,0.063]
[1741588923107,0.14216157,127.09,127.08,0.063]
[1741588923811,8.01056157,127.09,127.08,0.063]
[1741588924010,18.85273235,127.09,127.08,0.063]
[1741588924209,0.14216157,127.09,127.08,0.063]
[1741588924391,10.84217078,127.12,127.08,7.103]
[1741588924584,0.14216157,127.11,127.08,7.103]
[1741588925102,10.98433235,127.1,127.08,7.103]
[1741588925901,0.14216157,127.1,127.08,7.103]
[1741588926891,0.14216157,127.09,127.08,7.103]
[1741588928107,0.14216157,127.11,127.08,7.103]
[1741588928298,0.14216157,127.11,127.08,14.9719]
[1741588929118,0.14216157,127.1,127.08,7.103]